fUST/lending_fUST_20250816
["ID","MTS","AMOUNT","RATE_DAILY","PERIOD"]
[379477059,1755309033381,-460.0,0.0002498,9]
[379477060,1755309033391,-460.0,0.0002498,9]
[379477061,1755309033401,-460.0,0.0002498,9]
[379477062,1755309033410,-497.6,0.0002498,9]
[379477063,1755309033419,-502.81,0.0002498,9]
[379477064,1755309033429,-460.0,0.0002498,9]
[379477065,1755309033438,-460.0,0.0002498,9]
[379477066,1755309033447,-460.0,0.0002498,9]
[379477067,1755309033457,-460.0,0.0002498,9]
[379477068,1755309033467,-460.0,0.0002498,9]
[379477069,1755309033476,-460.0,0.0002498,9]
[379477070,1755309033486,-460.0,0.0002498,9]
[379477071,1755309033497,-460.0,0.0002498,9]
[379477072,1755309033506,-460.0,0.0002498,9]
[379477073,1755309033516,-535.49906886,0.0002498,9]
[379477074,1755309033526,-460.0,0.0002498,9]
[379477075,1755309033535,-460.0,0.0002498,9]
[379477076,1755309033544,-460.0,0.0002498,9]
[379477077,1755309033553,-460.0,0.0002498,9]
[379477078,1755309033562,-460.0,0.0002498,9]
[379477079,1755309033572,-460.0,0.0002498,7]
[379477080,1755309033581,-460.0,0.0002498,9]
[379477081,1755309033591,-460.0,0.0002498,9]
[379477082,1755309033600,-1110.77746243,0.00024981,2]
[379477083,1755309033610,-1110.77746243,0.00025489,3]
[379477084,1755309033620,-200.0,0.00025929,20]
[379477085,1755309033629,-200.0,0.00025929,20]
[379477086,1755309033639,-200.0,0.00025929,20]
[379477087,1755309033649,-200.0,0.00025929,20]
[379477088,1755309033659,-200.0,0.00025929,20]
[379477089,1755309033669,-200.0,0.00025929,20]
[379477090,1755309033678,-200.0,0.00025929,20]
[379477091,1755309033688,-200.0,0.00025929,20]
[379477092,1755309033698,-200.0,0.00025929,20]
[379477093,1755309033707,-200.0,0.00025929,20]
[379477094,1755309033717,-200.0,0.00025929,20]
[379477095,1755309033816,-200.0,0.00025929,20]
[379477096,1755309033826,-200.0,0.00025929,20]
[379477097,1755309033839,-200.0,0.00025929,20]
[379477098,1755309033848,-334.0,0.00025929,20]
[379477099,1755309033857,-1110.77746243,0.00025997,4]
[379477100,1755309033866,-264.65332551,0.0002606,2]
[379477101,1755309033875,-698.18,0.00026207,10]
[379477102,1755309033885,-837.81,0.00026208,10]
[379477103,1755309033895,-460.0,0.00026216,9]
[379477104,1755309033904,-460.0,0.00026216,9]
[379477105,1755309033915,-560.61,0.00026216,9]
[379477106,1755309033924,-995.33,0.00026216,9]
[379477107,1755309033933,-2075.96,0.00026216,9]
[379477108,1755309033943,-460.0,0.00026216,9]
[379477109,1755309033954,-460.0,0.00026216,9]
[379477110,1755309033963,-460.0,0.00026216,9]
[379477111,1755309033972,-460.0,0.00026216,9]
[379477112,1755309033982,-460.0,0.00026216,9]
[379477113,1755309033991,-467.80571974,0.00026216,9]
[379477114,1755309034001,-462.1499694,0.00026217,9]
[379477115,1755309034010,-1439.15,0.00026217,9]
[379477116,1755309034020,-460.0,0.00026217,9]
[379477117,1755309034030,-460.0,0.00026217,9]
[379477118,1755309034040,-577.89,0.00026217,9]
[379477119,1755309034050,-460.0,0.00026217,9]
[379477120,1755309034060,-460.0,0.00026217,9]
[379477121,1755309034070,-660.95,0.00026217,9]
[379477122,1755309034079,-460.0,0.00026217,9]
[379477123,1755309034089,-537.14,0.00026217,9]
[379477124,1755309034098,-3294.83,0.00026217,9]
[379477125,1755309034108,-460.0,0.00026217,9]
[379477126,1755309034118,-460.0,0.00026217,9]
[379477127,1755309034129,-619.04,0.00026217,9]
[379477128,1755309034139,-476.25789713,0.00026217,9]
[379477129,1755309034148,-521.21,0.00026217,9]
[379477130,1755309034157,-460.0,0.00026217,9]
[379477131,1755309034167,-460.0,0.00026217,9]
[379477132,1755309034176,-5109.34,0.00026217,9]
[379477133,1755309034185,-738.04,0.00026217,9]
[379477134,1755309034195,-460.0,0.00026217,9]
[379477135,1755309034205,-570.89283395,0.00026217,9]
[379477136,1755309034215,-1004.16,0.00026217,9]
[379477137,1755309034224,-460.0,0.00026217,9]
[379477138,1755309034233,-5037.49568969,0.00026218,7]
[379477139,1755309034242,-1005.37,0.00026495,10]
[379477140,1755309034252,-1110.77746243,0.00026505,5]
[379477141,1755309034263,-395.52,0.0002682,2]
[379477142,1755309034272,-151.0,0.00026833,7]
[379477143,1755309034282,-814.81571373,0.00026873,2]
[379477144,1755309034291,-819.79606438,0.00026889,2]
[379477145,1755309034300,-819.79606435,0.00026889,2]
[379477146,1755309034311,-819.79606435,0.0002689,2]
[379477147,1755309034320,-819.79606435,0.0002689,2]
[379477148,1755309034329,-819.79606435,0.0002689,2]
[379477149,1755309034339,-224.81402032,0.00026899,2]
[379477150,1755309034348,-11451.22292768,0.000269,4]
[379477151,1755309034362,-297.47747803,0.000269,4]
[379477177,1755309038436,-460.0,0.00024657,9]
[379477178,1755309038446,-272.98790899,0.00024979,2]
[379477179,1755309038456,-166.2437083,0.00024979,2]
[379477180,1755309038464,-460.0,0.00024979,9]
[379477181,1755309038473,-460.0,0.0002498,9]
[379477182,1755309038483,-460.0,0.0002498,9]
[379477183,1755309038491,-460.0,0.0002498,9]
[379477184,1755309038500,-460.0,0.00026216,9]
[379477185,1755309038509,-460.96673345,0.00026216,9]
[379477186,1755309038518,-258342.53959429,0.000269,4]
[379477187,1755309038526,-500.0,0.00026973,2]
[379477188,1755309038536,-500.0,0.00026973,2]
[379477189,1755309038544,-501.17070075,0.00026973,2]
[379477190,1755309038553,-500.0,0.00026973,2]
[379477191,1755309038562,-501.51266676,0.00026973,2]
[379477192,1755309038571,-501.06744168,0.00026973,2]
[379477193,1755309038579,-216.58658038,0.00026973,2]
[379477194,1755309038589,-501.65032429,0.00026973,2]
[379477195,1755309038598,-500.96515293,0.00026973,2]
[379477196,1755309038607,-397.20961565,0.00026973,2]
[379477197,1755309038616,-500.0,0.00026973,2]
[379477198,1755309038624,-500.0,0.00026973,2]
[379477199,1755309038633,-501.82173274,0.00026973,2]
[379477200,1755309038642,-500.0,0.00026973,2]
[379477201,1755309038651,-500.0,0.00026973,2]
[379477202,1755309038661,-501.00762181,0.00026973,2]
[379477203,1755309038669,-343.82364012,0.00026973,2]
[379477204,1755309038678,-1688.44722182,0.00026988,2]
[379477205,1755309038687,-368197.837204,0.00026989,2]
[379477206,1755309038696,-611.39928084,0.00026989,2]
[379477207,1755309038705,-765.25,0.00026989,3]
[379477208,1755309038715,-353515.16967036,0.0002699,2]
[379477362,1755309040227,-460.0,0.00024657,9]
[379477364,1755309040238,-460.0,0.00024979,9]
[379477366,1755309040247,-460.0,0.00026216,9]
[379477368,1755309040257,-14682.66753364,0.0002699,2]
[379477370,1755309040266,-611.39928084,0.0002699,2]
[379477371,1755309040275,-460.0,0.00026997,9]
[379477373,1755309040284,-460.0,0.00026997,9]
[379477375,1755309040294,-461.20942707,0.00026997,9]
[379477377,1755309040303,-460.0,0.00026997,9]
[379477379,1755309040313,-460.0,0.00026997,9]
[379477381,1755309040322,-460.0,0.00026997,9]
[379477383,1755309040331,-460.0,0.00026997,9]
[379477385,1755309040341,-460.0,0.00026998,9]
[379477387,1755309040350,-460.0,0.00026998,9]
[379477389,1755309040359,-470.72422824,0.00026998,9]
[379477391,1755309040369,-560.61,0.00026998,9]
[379477393,1755309040378,-560.61,0.00026998,9]
[379477395,1755309040388,-995.33,0.00026998,9]
[379477397,1755309040397,-995.33,0.00026998,9]
[379477399,1755309040406,-2075.96,0.00026998,9]
[379477401,1755309040415,-2075.96,0.00026998,9]
[379477403,1755309040424,-461.44853712,0.00026998,9]
[379477405,1755309040433,-461.76613267,0.00026998,9]
[379477407,1755309040442,-460.0,0.00026998,9]
[379477409,1755309040451,-242.68486708,0.00026998,9]
[379477411,1755309040459,-180.93815556,0.00026998,9]
[379477413,1755309040469,-460.0,0.00026998,9]
[379477415,1755309040480,-519.38401202,0.00026998,9]
[379477417,1755309040490,-160.0,0.00026999,2]
[379477419,1755309040499,-460.0,0.00026999,9]
[379477421,1755309040508,-461.60285803,0.00026999,9]
[379477423,1755309040517,-460.0,0.00026999,9]
[379477425,1755309040527,-460.0,0.00026999,9]
[379477436,1755309040632,-460.0,0.00026999,9]
[379477438,1755309040642,-460.0,0.00026999,9]
[379477440,1755309040651,-460.0,0.00026999,9]
[379477441,1755309040659,-460.0,0.00026999,9]
[379477443,1755309040669,-460.0,0.00026999,9]
[379477445,1755309040678,-171.45547477,0.00026999,9]
[379477447,1755309040687,-460.0,0.00026999,9]
[379477449,1755309040696,-460.0,0.00026999,9]
[379477451,1755309040706,-460.0,0.00026999,9]
[379477452,1755309040715,-460.0,0.00026999,9]
[379477453,1755309040725,-460.0,0.00026999,9]
[379477454,1755309040738,-456.45177064,0.00026999,9]
[379477455,1755309040747,-460.0,0.00026999,9]
[379477456,1755309040756,-460.0,0.00026999,9]
[379477457,1755309040765,-460.0,0.00026999,9]
[379477458,1755309040775,-460.0,0.00026999,9]
[379477459,1755309040785,-460.0,0.00026999,9]
[379477460,1755309040794,-460.0,0.00026999,9]
[379477461,1755309040803,-460.0,0.00026999,9]
[379477462,1755309040814,-460.0,0.00026999,9]
[379477463,1755309040823,-460.0,0.00026999,9]
[379477464,1755309040832,-460.0,0.00026999,9]
[379477465,1755309040842,-460.0,0.00026999,9]
[379477466,1755309040851,-525.20955639,0.00026999,9]
[379477467,1755309040860,-460.0,0.00026999,9]
[379477468,1755309040869,-460.0,0.00026999,9]
[379477469,1755309040878,-460.0,0.00026999,9]
[379477470,1755309040887,-460.0,0.00026999,9]
[379477471,1755309040896,-460.0,0.00026999,9]
[379477472,1755309040905,-460.0,0.00026999,9]
[379477473,1755309040914,-460.0,0.00026999,9]
[379477474,1755309040925,-460.0,0.00026999,9]
[379477475,1755309040934,-460.0,0.00026999,9]
[379477476,1755309040943,-460.0,0.00026999,9]
[379477477,1755309040952,-460.0,0.00026999,9]
[379477478,1755309040961,-460.0,0.00026999,9]
[379477479,1755309040970,-482.79,0.00026999,9]
[379477480,1755309040980,-482.79,0.00026999,9]
[379477481,1755309040989,-482.79,0.00026999,9]
[379477482,1755309040999,-482.79,0.00026999,9]
[379477483,1755309041007,-482.79,0.00026999,9]
[379477484,1755309041017,-482.79,0.00026999,9]
[379477485,1755309041025,-464.47459199,0.00026999,9]
[379477486,1755309041035,-460.0,0.00026999,9]
[379477487,1755309041044,-460.0,0.00026999,9]
[379477488,1755309041053,-460.0,0.00026999,9]
[379477489,1755309041063,-460.0,0.00026999,9]
[379477490,1755309041073,-460.0,0.00026999,9]
[379477491,1755309041083,-460.0,0.00026999,9]
[379477492,1755309041093,-460.0,0.00026999,9]
[379477493,1755309041102,-460.0,0.00026999,9]
[379477494,1755309041111,-460.0,0.00026999,9]
[379477495,1755309041122,-461.09273209,0.00026999,9]
[379477496,1755309041131,-460.0,0.00026999,9]
[379477497,1755309041140,-460.0,0.00026999,9]
[379477498,1755309041150,-460.0,0.00026999,9]
[379477499,1755309041159,-460.0,0.00026999,9]
[379477500,1755309041169,-460.0,0.00026999,9]
[379477501,1755309041178,-460.0,0.00026999,9]
[379477502,1755309041187,-460.0,0.00026999,9]
[379477503,1755309041198,-460.0,0.00026999,9]
[379477504,1755309041207,-460.0,0.00026999,9]
[379477505,1755309041216,-460.0,0.00026999,9]
[379477506,1755309041226,-460.0,0.00026999,9]
[379477507,1755309041235,-460.0,0.00026999,9]
[379477508,1755309041244,-460.0,0.00026999,9]
[379477509,1755309041253,-460.0,0.00026999,9]
[379477510,1755309041263,-460.0,0.00026999,9]
[379477511,1755309041271,-460.0,0.00026999,9]
[379477512,1755309041281,-460.0,0.00026999,9]
[379477513,1755309041289,-460.0,0.00026999,9]
[379477514,1755309041299,-460.0,0.00026999,9]
[379477515,1755309041308,-460.0,0.00026999,9]
[379477516,1755309041317,-460.0,0.00026999,9]
[379477517,1755309041326,-460.0,0.00026999,9]
[379477518,1755309041335,-460.0,0.00026999,9]
[379477519,1755309041344,-460.0,0.00026999,9]
[379477520,1755309041353,-439.45483227,0.00026999,9]
[379477532,1755309152479,166.708754,0.00013699,2]
[379477549,1755309959091,-325.03386162,0.00019701,2]
[379477557,1755310033097,-208.78843776,0.00019701,2]
[379477558,1755310033121,-790.81843189,0.000199,2]
[379477559,1755310033141,-2697.84878795,0.0002,7]
[379477560,1755310033164,-790.81843173,0.00020408,2]
[379477561,1755310033187,-790.81843173,0.00020916,2]
[379477562,1755310033211,-150.0,0.00021314,2]
[379477563,1755310033236,-790.81843173,0.00021424,2]
[379477564,1755310033260,-221.43449303,0.00021932,2]
[379477566,1755310036096,-569.3839387,0.00021932,2]
[379477567,1755310036118,-327.76173244,0.0002244,2]
[379477568,1755310040084,-463.05669929,0.0002244,2]
[379477569,1755310040108,-86.13137172,0.00022699,2]
[379477579,1755310154526,-150.0,0.00021278,2]
[379477580,1755310154551,-6.8,0.00022387,2]
[379477583,1755310211842,167.388331,0.00013699,2]
[379477629,1755310232495,-749.28686913,0.000199,2]
[379477630,1755310232504,-378.02991318,0.00020408,2]
[379477631,1755310232516,-371.25695585,0.00020408,2]
[379477632,1755310232526,-749.28686903,0.00020916,2]
[379477633,1755310232535,-749.28686903,0.00021424,2]
[379477634,1755310232545,-749.28686903,0.00021932,2]
[379477635,1755310232554,-323.10107519,0.00022387,2]
[379477690,1755310238550,-1094.79570561,0.00022387,2]
[379477691,1755310238559,-749.28686903,0.0002244,2]
[379477692,1755310238569,-662.74908384,0.00022599,2]
[379477693,1755310238579,-3000.0,0.000227,2]
[379477694,1755310238588,-300.0,0.00022709,2]
[379477695,1755310238598,-3000.0,0.0002271,2]
[379477696,1755310238608,-3000.0,0.0002272,2]
[379477697,1755310238618,-3000.0,0.0002273,2]
[379477698,1755310238629,-3000.0,0.0002274,2]
[379477699,1755310238639,-1348.05676999,0.0002275,2]
[379477700,1755310238651,-1651.94323001,0.0002275,2]
[379477701,1755310238661,-3000.0,0.0002276,2]
[379477702,1755310238670,-3000.0,0.0002277,2]
[379477703,1755310238680,-4525.541348,0.0002278,2]
[379477704,1755310238689,-749.28686903,0.00022948,2]
[379477705,1755310238699,-200.0,0.00023153,20]
[379477706,1755310238708,-200.0,0.00023153,20]
[379477707,1755310238717,-200.0,0.00023153,20]
[379477708,1755310238727,-200.0,0.00023153,20]
[379477709,1755310238737,-200.0,0.00023153,20]
[379477710,1755310238746,-200.0,0.00023153,20]
[379477711,1755310238756,-200.0,0.00023153,20]
[379477712,1755310238766,-200.0,0.00023153,20]
[379477713,1755310238776,-377.63811854,0.00023218,2]
[379477714,1755310238785,-749.28686903,0.00023456,2]
[379477715,1755310238795,-749.28686903,0.00023964,2]
[379477716,1755310238805,-749.28686903,0.00024473,2]
[379477717,1755310238814,-940.8330927,0.00024557,2]
[379477718,1755310238824,-4109.12331892,0.00024557,2]
[379477719,1755310238834,-157.36981423,0.00024599,2]
[379477720,1755310238843,-151.0,0.000246,10]
[379477721,1755310238853,-258342.54,0.000246,2]
[379477722,1755310238862,-500.0,0.00024602,2]
[379477723,1755310238871,-940.83309269,0.00024633,2]
[379477724,1755310238881,-177.54398476,0.00024646,2]
[379477725,1755310238890,-502.8246844,0.00024646,2]
[379477726,1755310238900,-872.22,0.00024647,3]
[379477727,1755310238910,-436.11,0.00024647,3]
[379477728,1755310238919,-218.05,0.00024647,3]
[379477729,1755310238929,-654.2,0.00024647,3]
[379477730,1755310238939,-460.76706976,0.00024657,9]
[379477731,1755310238948,-460.0,0.00024657,9]
[379477732,1755310238958,-460.75977556,0.00024657,9]
[379477733,1755310238967,-460.0,0.00024657,9]
[379477734,1755310238976,-460.0,0.00024657,9]
[379477735,1755310238986,-460.0,0.00024657,9]
[379477736,1755310238995,-460.0,0.00024657,9]
[379477737,1755310239004,-460.0,0.00024657,9]
[379477738,1755310239014,-460.0,0.00024657,9]
[379477739,1755310239023,-460.0,0.00024657,9]
[379477740,1755310239032,-460.0,0.00024657,9]
[379477741,1755310239042,-460.0,0.00024657,9]
[379477742,1755310239051,-460.0,0.00024657,9]
[379477743,1755310239061,-460.0,0.00024657,9]
[379477744,1755310239070,-460.0,0.00024657,9]
[379477745,1755310239177,-351.49534907,0.00024657,9]
[379477746,1755310239187,-460.0,0.00024657,9]
[379477747,1755310239197,-460.0,0.00024657,9]
[379477748,1755310239207,-460.0,0.00024657,9]
[379477749,1755310239216,-460.0,0.00024657,9]
[379477750,1755310239226,-460.0,0.00024657,9]
[379477751,1755310239236,-460.0,0.00024657,9]
[379477752,1755310239245,-466.6546454,0.00024657,9]
[379477753,1755310239255,-605.29,0.00024657,9]
[379477754,1755310239265,-605.29,0.00024657,9]
[379477755,1755310239274,-605.29,0.00024657,9]
[379477756,1755310239285,-605.29,0.00024657,9]
[379477757,1755310239295,-460.0,0.00024657,9]
[379477758,1755310239304,-524.58734692,0.00024657,9]
[379477759,1755310239313,-460.0,0.00024657,9]
[379477760,1755310239323,-373.48055014,0.00024657,9]
[379477761,1755310239332,-460.0,0.00024657,9]
[379477762,1755310239342,-461.39809513,0.00024657,9]
[379477763,1755310239355,-460.0,0.00024657,9]
[379477764,1755310239365,-460.0,0.00024657,9]
[379477765,1755310239374,-460.0,0.00024657,9]
[379477766,1755310239385,-460.0,0.00024657,9]
[379477767,1755310239395,-460.0,0.00024657,9]
[379477768,1755310239404,-460.0,0.00024657,9]
[379477769,1755310239416,-460.0,0.00024657,9]
[379477770,1755310239426,-460.0,0.00024657,9]
[379477771,1755310239435,-460.0,0.00024657,9]
[379477772,1755310239445,-460.0,0.00024657,9]
[379477773,1755310239455,-460.0,0.00024657,9]
[379477774,1755310239466,-460.0,0.00024657,9]
[379477775,1755310239476,-460.0,0.00024657,9]
[379477776,1755310239485,-460.0,0.00024657,9]
[379477777,1755310239495,-238.27256903,0.00024657,9]
[379477778,1755310239505,-460.0,0.00024657,9]
[379477779,1755310239514,-460.0,0.00024657,9]
[379477780,1755310239523,-460.0,0.00024657,9]
[379477781,1755310239533,-464.2387863,0.00024657,9]
[379477782,1755310239542,-460.0,0.00024657,9]
[379477783,1755310239552,-543.23159899,0.00024657,9]
[379477784,1755310239561,-460.0,0.00024657,9]
[379477785,1755310239571,-470.01242197,0.00024657,9]
[379477786,1755310239580,-460.0,0.00024657,9]
[379477787,1755310239590,-460.0,0.00024657,9]
[379477788,1755310239599,-460.0,0.00024657,9]
[379477789,1755310239608,-460.0,0.00024657,9]
[379477790,1755310239617,-460.0,0.00024657,9]
[379477791,1755310239626,-460.0,0.00024657,9]
[379477792,1755310239636,-460.0,0.00024657,9]
[379477793,1755310239645,-238.41429519,0.00024657,9]
[379477794,1755310239655,-460.0,0.00024657,9]
[379477795,1755310239664,-460.0,0.00024657,9]
[379477796,1755310239674,-460.0,0.00024657,9]
[379477797,1755310239683,-460.0,0.00024657,9]
[379477798,1755310239692,-460.0,0.00024657,9]
[379477799,1755310239702,-460.0,0.00024657,9]
[379477800,1755310239712,-460.0,0.00024657,9]
[379477801,1755310239721,-460.0,0.00024657,9]
[379477802,1755310239731,-460.0,0.00024657,9]
[379477803,1755310239743,-460.0,0.00024657,9]
[379477804,1755310239753,-295.44407232,0.00024657,9]
[379477805,1755310239762,-460.0,0.00024657,9]
[379477806,1755310239771,-460.0,0.00024657,9]
[379477807,1755310239781,-460.0,0.00024657,9]
[379477808,1755310239791,-460.0,0.00024657,9]
[379477809,1755310239800,-460.0,0.00024657,9]
[379477810,1755310239810,-330.85511728,0.00024657,9]
[379477811,1755310239820,-460.0,0.00024657,9]
[379477812,1755310239831,-460.0,0.00024657,9]
[379477813,1755310239841,-460.0,0.00024657,9]
[379477814,1755310239851,-460.0,0.00024657,9]
[379477815,1755310239860,-460.0,0.00024657,9]
[379477816,1755310239870,-460.0,0.00024657,9]
[379477817,1755310239879,-460.0,0.00024657,9]
[379477818,1755310239889,-461.73507871,0.00024657,9]
[379477819,1755310239899,-460.0,0.00024657,9]
[379477820,1755310239908,-460.0,0.00024657,9]
[379477821,1755310239917,-460.0,0.00024657,9]
[379477822,1755310239926,-460.0,0.00024657,9]
[379477823,1755310239936,-460.0,0.00024657,9]
[379477824,1755310239945,-460.0,0.00024657,9]
[379477825,1755310239954,-460.0,0.00024657,9]
[379477826,1755310239964,-460.0,0.00024657,9]
[379477827,1755310239973,-469.51391523,0.00024657,9]
[379477828,1755310239982,-460.0,0.00024657,9]
[379477829,1755310239991,-460.0,0.00024657,9]
[379477830,1755310240001,-460.0,0.00024657,9]
[379477831,1755310240011,-460.0,0.00024657,9]
[379477832,1755310240020,-460.0,0.00024657,9]
[379477833,1755310240030,-461.77917675,0.00024657,9]
[379477834,1755310240039,-460.0,0.00024657,9]
[379477835,1755310240049,-460.0,0.00024657,9]
[379477836,1755310240058,-465.68020098,0.00024657,9]
[379477837,1755310240068,-460.0,0.00024657,9]
[379477838,1755310240077,-460.0,0.00024657,9]
[379477839,1755310240086,-460.0,0.00024657,9]
[379477840,1755310240096,-460.98563427,0.00024657,9]
[379477841,1755310240105,-460.0,0.00024657,9]
[379477842,1755310240114,-460.0,0.00024657,9]
[379477843,1755310240124,-460.0,0.00024657,9]
[379477844,1755310240133,-1843.18,0.00024657,9]
[379477845,1755310240142,-460.0,0.00024657,9]
[379477846,1755310240152,-460.0,0.00024657,9]
[379477847,1755310240164,-460.0,0.00024657,9]
[379477849,1755310240174,-460.87716478,0.00024657,9]
[379477851,1755310240184,-460.0,0.00024657,9]
[379477853,1755310240193,-460.0,0.00024657,9]
[379477855,1755310240203,-460.0,0.00024657,9]
[379477856,1755310240211,-460.0,0.00024657,9]
[379477857,1755310240221,-460.0,0.00024657,9]
[379477858,1755310240231,-460.0,0.00024657,9]
[379477860,1755310240240,-460.0,0.00024657,9]
[379477861,1755310240250,-470.89748224,0.00024657,9]
[379477862,1755310240259,-460.0,0.00024657,9]
[379477863,1755310240268,-460.0,0.00024657,9]
[379477865,1755310240278,-461.48436088,0.00024657,9]
[379477866,1755310240288,-460.0,0.00024657,9]
[379477867,1755310240298,-461.22713208,0.00024657,9]
[379477868,1755310240307,-460.0,0.00024657,9]
[379477869,1755310240317,-460.0,0.00024657,9]
[379477870,1755310240326,-460.0,0.00024657,9]
[379477871,1755310240336,-460.0,0.00024657,9]
[379477872,1755310240348,-460.0,0.00024657,9]
[379477873,1755310240358,-460.0,0.00024657,9]
[379477874,1755310240367,-460.0,0.00024657,9]
[379477875,1755310240376,-460.0,0.00024657,9]
[379477876,1755310240385,-460.0,0.00024657,9]
[379477877,1755310240396,-460.0,0.00024657,9]
[379477878,1755310240405,-460.0,0.00024657,9]
[379477879,1755310240415,-460.0,0.00024657,9]
[379477880,1755310240425,-460.84236908,0.00024657,9]
[379477881,1755310240434,-460.0,0.00024657,9]
[379477882,1755310240444,-460.0,0.00024657,9]
[379477883,1755310240453,-460.0,0.00024657,9]
[379477884,1755310240463,-460.0,0.00024657,9]
[379477885,1755310240473,-460.0,0.00024657,9]
[379477886,1755310240482,-460.0,0.00024657,9]
[379477887,1755310240493,-460.0,0.00024657,9]
[379477888,1755310240502,-460.0,0.00024657,9]
[379477889,1755310240512,-460.0,0.00024657,9]
[379477890,1755310240522,-460.0,0.00024657,9]
[379477891,1755310240531,-465.2775455,0.00024657,9]
[379477892,1755310240541,-460.0,0.00024657,9]
[379477893,1755310240551,-460.0,0.00024657,9]
[379477894,1755310240560,-460.0,0.00024657,9]
[379477896,1755310240569,-460.0,0.00024657,9]
[379477897,1755310240578,-460.0,0.00024657,9]
[379477898,1755310240587,-460.0,0.00024657,9]
[379477899,1755310240596,-460.84043951,0.00024657,9]
[379477900,1755310240605,-460.0,0.00024657,9]
[379477901,1755310240615,-460.0,0.00024657,9]
[379477902,1755310240623,-460.0,0.00024657,9]
[379477903,1755310240633,-460.0,0.00024657,9]
[379477904,1755310240642,-460.0,0.00024657,9]
[379477905,1755310240734,-566.77,0.00024657,9]
[379477906,1755310240746,-460.0,0.00024657,9]
[379477907,1755310240755,-460.0,0.00024657,9]
[379477908,1755310240765,-460.0,0.00024657,9]
[379477909,1755310240774,-460.0,0.00024657,9]
[379477910,1755310240784,-460.0,0.00024657,9]
[379477911,1755310240794,-460.0,0.00024657,9]
[379477912,1755310240804,-460.0,0.00024657,9]
[379477913,1755310240813,-460.0,0.00024657,9]
[379477914,1755310240822,-460.0,0.00024657,9]
[379477915,1755310240832,-460.0,0.00024657,9]
[379477916,1755310240841,-460.0,0.00024657,9]
[379477917,1755310240851,-460.0,0.00024657,9]
[379477918,1755310240860,-460.0,0.00024657,9]
[379477919,1755310240869,-460.0,0.00024657,9]
[379477920,1755310240878,-460.0,0.00024657,9]
[379477921,1755310240888,-460.0,0.00024657,9]
[379477922,1755310240898,-460.0,0.00024657,9]
[379477923,1755310240907,-460.0,0.00024657,9]
[379477924,1755310240916,-460.0,0.00024657,9]
[379477925,1755310240925,-460.0,0.00024657,9]
[379477926,1755310240934,-460.0,0.00024657,9]
[379477927,1755310240943,-470.06,0.00024657,9]
[379477928,1755310240953,-470.06,0.00024657,9]
[379477929,1755310240962,-460.0,0.00024657,9]
[379477930,1755310240972,-470.06,0.00024657,9]
[379477931,1755310240981,-470.06,0.00024657,9]
[379477932,1755310240989,-460.0,0.00024657,9]
[379477933,1755310240998,-460.0,0.00024657,9]
[379477934,1755310241007,-460.0,0.00024657,9]
[379477935,1755310241016,-722.74,0.00024657,9]
[379477936,1755310241025,-460.0,0.00024657,9]